bitfinex-derivatives/quotes_BTCF0:USTF0_20210705
["timestamp","ask_amount","ask_price","bid_price","bid_amount"]
[1625512816006,5.27107544,34105.0,34104.0,6.89313169]
[1625512816107,5.27107544,34105.0,34104.0,6.95213169]
[1625512816456,5.35767544,34105.0,34104.0,6.95213169]
[1625512818160,5.27107544,34105.0,34104.0,6.95213169]
[1625512824673,0.24057544,34105.0,34104.0,6.95213169]
[1625512826631,0.24057544,34105.0,34104.0,2.21398069]
[1625512826831,0.24057544,34105.0,34104.0,1.88389069]
[1625512827031,0.24057544,34105.0,34104.0,6.57935691]
[1625512829939,0.24057544,34105.0,34104.0,6.52035691]
[1625512831341,0.24057544,34105.0,34104.0,6.57935691]
[1625512831442,0.24057544,34105.0,34104.0,6.52035691]
[1625512835147,0.24057544,34105.0,34104.0,6.57935691]
[1625512837756,0.24057544,34105.0,34104.0,6.52035691]
[1625512837905,0.24057544,34105.0,34104.0,6.57935691]
[1625512838005,0.24057544,34105.0,34104.0,6.52035691]
[1625512838456,0.24057544,34105.0,34104.0,6.57935691]
[1625512838557,0.24057544,34105.0,34104.0,6.52035691]
[1625512838958,0.24057544,34105.0,34104.0,6.57935691]
[1625512839058,0.24057544,34105.0,34104.0,6.52035691]
[1625512839411,0.24057544,34105.0,34104.0,6.57935691]
[1625512839511,0.24057544,34105.0,34104.0,6.52035691]
[1625512839609,0.24057544,34105.0,34104.0,6.57935691]
[1625512840911,0.24057544,34108.0,34104.0,6.57935691]
[1625512841013,5.6272,34111.0,34105.0,0.3431]
[1625512841113,5.6272,34111.0,34105.0,0.4021]
[1625512841418,5.6272,34111.0,34106.0,0.00347409]
[1625512841513,5.6272,34111.0,34110.0,0.24057544]
[1625512841916,5.6272,34111.0,34110.0,4.92557509]
[1625512842013,5.6272,34111.0,34110.0,4.92904906]
[1625512842666,0.51925063,34114.0,34110.0,4.92904906]
[1625512842768,0.51925063,34114.0,34110.0,5.04504906]
[1625512843017,0.51925063,34114.0,34113.0,2.17406023]
[1625512843116,0.51925063,34114.0,34113.0,2.41542023]
[1625512843216,0.51925063,34114.0,34113.0,2.47442023]
[1625512843516,0.51925063,34114.0,34113.0,3.88904127]
[1625512843517,0.01579376,34114.0,34113.0,3.88904127]
[1625512844017,0.01579376,34114.0,34113.0,3.94804127]
[1625512844136,0.51940155,34115.0,34113.0,3.94804127]
[1625512844217,0.51940155,34115.0,34113.0,4.00504127]
[1625512844319,0.1731721,34117.0,34114.0,4.67401144]
[1625512844420,0.1731721,34117.0,34114.0,4.73448517]
[1625512844537,0.1731721,34117.0,34114.0,4.85248517]
[1625512844617,0.1731721,34117.0,34115.0,0.00347364]
[1625512844720,1.21133968,34119.0,34115.0,0.00347364]
[1625512844721,1.21133968,34119.0,34116.0,1.33439729]
[1625512844818,1.55748331,34120.0,34116.0,1.33439729]
[1625512844819,0.51931572,34120.0,34116.0,4.72739051]
[1625512844918,0.51931572,34120.0,34116.0,4.78639051]
[1625512845269,0.51907698,34122.0,34119.0,3.3312588]
[1625512845369,0.51907698,34122.0,34119.0,3.5062588]
[1625512845476,0.51907698,34122.0,34120.0,4.9307]
[1625512845578,0.51907698,34122.0,34121.0,0.73165088]
[1625512845681,0.51907698,34122.0,34121.0,0.79065088]
[1625512845782,0.51907698,34122.0,34121.0,4.12347548]
[1625512845869,0.51907698,34122.0,34121.0,4.18247548]
[1625512846270,0.51907698,34122.0,34121.0,5.51867986]
[1625512846271,0.01578793,34122.0,34121.0,5.51867986]
[1625512846575,0.41373442,34123.0,34122.0,0.0034731]
[1625512846670,0.41373442,34123.0,34122.0,0.1214731]
[1625512846770,0.24057544,34123.0,34122.0,0.1214731]
[1625512847075,0.51929856,34124.0,34122.0,0.1214731]
[1625512847172,0.51929856,34124.0,34122.0,0.1784731]
[1625512847274,0.51929856,34124.0,34122.0,3.50976614]
[1625512847373,0.51929856,34124.0,34123.0,0.00347314]
[1625512847472,0.51929856,34124.0,34123.0,0.06247314]
[1625512847573,0.51929856,34124.0,34123.0,2.28770763]
[1625512848525,0.51929856,34124.0,34123.0,3.45390421]
[1625512848725,0.51929856,34124.0,34123.0,3.45043107]
[1625512848825,0.17315358,34124.0,34123.0,3.45043107]
[1625512848924,0.17315358,34124.0,34123.0,3.45390413]
[1625512849375,0.86515565,34125.0,34123.0,3.45390413]
[1625512849376,0.1730211,34125.0,34123.0,3.45390413]
[1625512849576,0.1730211,34125.0,34123.0,3.69447957]
[1625512849724,0.1730211,34125.0,34124.0,0.00347298]
[1625512849824,0.1730211,34125.0,34124.0,0.12147298]
[1625512849925,0.1730211,34125.0,34124.0,2.28511662]
[1625512850025,0.1730211,34125.0,34124.0,2.28164364]
[1625512850425,0.51893197,34126.0,34124.0,2.28164364]
[1625512850974,0.51893197,34126.0,34125.0,2.16261071]
[1625512851074,0.51893197,34126.0,34125.0,2.28061071]
[1625512853376,0.17306262,34126.0,34125.0,2.28061071]
[1625512853476,0.17306262,34126.0,34125.0,2.52968071]
[1625512853779,0.17301255,34129.0,34125.0,5.02270171]
[1625512853878,0.17301255,34129.0,34125.0,5.07970171]
[1625512854080,0.17301255,34129.0,34125.0,5.08317441]
[1625512854283,0.17301255,34129.0,34125.0,5.07970171]
[1625512854382,0.17300867,34130.0,34128.0,3.32333032]
[1625512854481,0.17300867,34130.0,34128.0,3.43933032]
[1625512854583,0.17300867,34130.0,34128.0,3.49833032]
[1625512854737,0.17300867,34130.0,34129.0,2.16020595]
[1625512854833,0.17300867,34130.0,34129.0,2.21920595]
[1625512854934,0.17300867,34130.0,34129.0,2.27820595]
[1625512855133,0.17289405,34131.0,34129.0,2.27820595]
[1625512855435,0.17289405,34131.0,34130.0,1.16307133]
[1625512855533,0.17289405,34131.0,34130.0,1.28107133]
[1625512855634,0.17289405,34131.0,34130.0,2.00279765]
[1625512856537,9.405e-05,34131.0,34130.0,2.00279765]
[1625512856640,0.51851264,34132.0,34130.0,2.99938405]
[1625512856740,0.51851264,34132.0,34130.0,3.05638405]
[1625512857142,0.34537034,34135.0,34131.0,2.1565439]
[1625512857293,0.34537034,34135.0,34132.0,0.29076]
[1625512857391,0.34537034,34135.0,34132.0,0.40876]
[1625512857590,0.34537034,34135.0,34134.0,0.24057544]
[1625512857691,0.34537034,34135.0,34134.0,0.35857544]
[1625512858192,0.34537034,34135.0,34134.0,0.69078913]
[1625512858696,0.58593997,34136.0,34134.0,0.69078913]
[1625512859296,0.58593997,34136.0,34134.0,0.35857544]
[1625512859804,0.24057544,34136.0,34134.0,0.69046984]
[1625512860200,0.24057544,34136.0,34134.0,0.35857544]
[1625512860649,0.58570618,34136.0,34134.0,0.35857544]
[1625512861950,0.24057544,34136.0,34134.0,0.35857544]
[1625512863004,0.34495462,34138.0,34134.0,0.35857544]
[1625512863353,0.86225721,34139.0,34134.0,0.69023995]
[1625512863454,0.86225721,34139.0,34134.0,0.63123995]
[1625512863598,0.92125721,34139.0,34134.0,0.33166451]
[1625512863657,0.48115088,34135.0,34134.0,0.33166451]
[1625512863755,0.82016088,34135.0,34134.0,0.33166451]
[1625512863856,0.87916088,34135.0,34132.0,0.33172263]
[1625512864257,0.87916088,34135.0,34130.0,0.24057544]
[1625512864258,0.34476563,34134.0,34130.0,0.24057544]
[1625512864813,0.40376563,34134.0,34130.0,0.24057544]
[1625512865109,0.40376563,34134.0,34128.0,0.83026763]
[1625512865408,0.40376563,34134.0,34128.0,0.88926763]
[1625512865508,3.6389,34129.0,34128.0,0.88926763]
[1625512865608,4.12005088,34129.0,34128.0,0.88926763]
[1625512865709,4.12005088,34129.0,34128.0,0.059]
[1625512866210,4.12005088,34129.0,34126.0,0.83080403]
[1625512867762,4.12005088,34129.0,34126.0,0.3323261]
[1625512868064,4.12005088,34129.0,34125.0,1.07216062]
[1625512868766,4.12005088,34129.0,34125.0,0.57354884]
[1625512869621,4.36062632,34129.0,34125.0,0.57354884]
[1625512870671,4.36062632,34129.0,34126.0,0.33377029]
[1625512871023,4.36062632,34129.0,34125.0,0.57421905]
[1625512871175,4.41962632,34129.0,34125.0,0.57421905]
[1625512871473,4.41962632,34129.0,34125.0,0.24057544]
[1625512872529,4.41962632,34129.0,34125.0,0.57445035]
[1625512872779,4.41962632,34129.0,34126.0,0.00347302]
[1625512875230,4.82347813,34129.0,34126.0,0.00347302]
[1625512875389,0.01570217,34128.0,34124.0,0.33399317]
[1625512875489,0.29722217,34128.0,34124.0,0.33399317]
[1625512875601,0.34490565,34127.0,34122.0,0.33430533]
[1625512875689,0.48115088,34123.0,34122.0,0.33430533]
[1625512875993,0.48115088,34123.0,34122.0,0.00347332]
[1625512876394,0.59915088,34123.0,34122.0,0.00347332]
[1625512876492,0.61485465,34123.0,34120.0,0.33455047]
[1625512876695,1.82193782,34123.0,34118.0,0.24057544]
[1625512876994,0.01570424,34122.0,34118.0,0.24057544]
[1625512877095,0.34495848,34121.0,34118.0,0.24057544]
[1625512877195,4.622,34119.0,34118.0,0.24057544]
[1625512877696,4.86257544,34119.0,34118.0,0.24057544]
[1625512878048,4.92157544,34119.0,34118.0,0.24057544]
[1625512880657,4.86257544,34119.0,34118.0,0.24057544]
[1625512881008,4.92157544,34119.0,34118.0,0.24057544]
[1625512881110,4.92157544,34119.0,34118.0,0.57561845]
[1625512881410,4.92157544,34119.0,34118.0,0.24057544]
[1625512883514,4.86257544,34119.0,34118.0,0.24057544]
[1625512883964,4.92157544,34119.0,34118.0,0.24057544]
[1625512884718,5.26667804,34119.0,34118.0,0.24057544]
[1625512884919,5.20767804,34119.0,34118.0,0.24057544]
[1625512885382,4.86257544,34119.0,34118.0,0.24057544]
[1625512885623,4.98057544,34119.0,34117.0,0.33592631]
[1625512885791,0.24057544,34118.0,34117.0,0.33592631]
[1625512885910,0.29957544,34118.0,34117.0,0.33592631]
[1625512886014,0.29957544,34118.0,34116.0,0.33587346]
[1625512886015,0.35857544,34118.0,34116.0,0.33587346]
[1625512886278,0.35857544,34118.0,34116.0,0.23947346]
[1625512886522,0.35857544,34118.0,34114.0,0.1831386]
[1625512886623,0.35857544,34118.0,34110.0,0.504205]
[1625512886624,2.24300932,34117.0,34110.0,0.504205]
[1625512886823,2.44980932,34117.0,34110.0,0.504205]
[1625512887128,1.20784722,34115.0,34103.0,1.1775478]
[1625512887225,1.26684722,34115.0,34103.0,1.1775478]
[1625512887327,1.32584722,34115.0,34103.0,1.1775478]
[1625512887426,1.20791392,34114.0,34102.0,1.17779437]
[1625512887526,1.50288392,34114.0,34102.0,1.17779437]
[1625512887626,1.56188392,34114.0,34102.0,1.17779437]
[1625512887727,0.48115088,34103.0,34102.0,1.17779437]
[1625512887831,0.48115088,34103.0,34101.0,1.41855973]
[1625512887927,0.80929088,34103.0,34101.0,1.41855973]
[1625512888127,0.80929088,34103.0,34102.0,0.059]
[1625512888627,4.59689088,34103.0,34102.0,0.059]
[1625512889532,4.59689088,34103.0,34102.0,1.23548561]
[1625512889736,4.65589088,34103.0,34102.0,1.23548561]
[1625512889833,4.59689088,34103.0,34102.0,1.23548561]
[1625512892588,4.59689088,34103.0,34102.0,0.059]
[1625512895748,4.35631544,34103.0,34102.0,0.059]
[1625512896695,4.35631544,34103.0,34101.0,0.24057544]
[1625512897948,4.35631544,34103.0,34101.0,0.29957544]
[1625512899052,4.35631544,34103.0,34101.0,0.24057544]
[1625512899253,4.41531544,34103.0,34101.0,0.24057544]
[1625512899804,4.41531544,34103.0,34101.0,0.29957544]
[1625512900011,4.41531544,34103.0,34101.0,0.24057544]
[1625512901157,4.35631544,34103.0,34101.0,0.24057544]
[1625512902160,4.35631544,34103.0,34101.0,0.29957544]
[1625512902364,4.35631544,34103.0,34101.0,1.47430822]
[1625512902460,4.35631544,34103.0,34101.0,1.41530822]
[1625512902661,4.35631544,34103.0,34101.0,1.47430822]
[1625512902862,4.35631544,34103.0,34101.0,1.41530822]
[1625512903714,4.35631544,34103.0,34101.0,0.24057544]
[1625512903912,4.41531544,34103.0,34101.0,0.24057544]
[1625512904013,4.35631544,34103.0,34101.0,0.24057544]
[1625512906569,4.41531544,34103.0,34101.0,0.24057544]
[1625512906671,4.35631544,34103.0,34101.0,0.24057544]
[1625512907172,4.41531544,34103.0,34101.0,0.24057544]
[1625512907272,4.35631544,34103.0,34101.0,0.24057544]
[1625512907573,4.41531544,34103.0,34101.0,0.24057544]
[1625512908677,4.41531544,34103.0,34101.0,0.29957544]
[1625512908776,4.41531544,34103.0,34101.0,0.24057544]
[1625512910431,4.41531544,34103.0,34102.0,0.00347497]
[1625512911630,4.41531544,34103.0,34102.0,0.06247497]
[1625512911731,4.41531544,34103.0,34102.0,0.00347497]
[1625512911849,4.50401544,34103.0,34102.0,0.00347497]
[1625512912032,4.41531544,34103.0,34102.0,0.00347497]
[1625512912231,4.41531544,34103.0,34102.0,0.06247497]
[1625512914089,4.35631544,34103.0,34102.0,0.06247497]
[1625512915687,4.35631544,34103.0,34102.0,0.12147497]
[1625512917047,4.35631544,34103.0,34102.0,1.13169506]
[1625512917147,0.56871544,34103.0,34102.0,1.13169506]
[1625512917247,0.24057544,34103.0,34102.0,1.13169506]
[1625512917645,0.24057544,34103.0,34102.0,2.31030147]
[1625512918096,0.24057544,34103.0,34102.0,2.25130147]
[1625512918197,0.24057544,34103.0,34102.0,3.65644902]
[1625512918295,0.24057544,34103.0,34102.0,3.59744902]
[1625512918549,0.24057544,34103.0,34102.0,2.25130147]
[1625512918698,0.24057544,34103.0,34102.0,2.31030147]
[1625512919249,0.24057544,34103.0,34102.0,3.65711554]
[1625512920804,4.5824,34106.0,34102.0,3.65711554]
[1625512920901,4.5824,34106.0,34102.0,3.88075554]
[1625512921102,4.5824,34106.0,34105.0,3.53137879]
[1625512921301,4.5824,34106.0,34105.0,3.64937879]
[1625512921604,4.5824,34106.0,34105.0,3.65285276]
[1625512921703,0.24057544,34107.0,34105.0,3.65285276]
[1625512921905,0.24057544,34107.0,34106.0,0.24057544]
[1625512922106,0.24057544,34107.0,34106.0,0.35857544]
[1625512922254,0.24057544,34107.0,34106.0,3.89214106]
[1625512928013,0.24057544,34107.0,34106.0,3.83314106]
[1625512928364,0.24057544,34107.0,34106.0,3.89214106]
[1625512928666,0.24057544,34107.0,34106.0,3.83314106]
[1625512929216,0.24057544,34107.0,34106.0,3.89214106]
[1625512930018,0.24057544,34107.0,34106.0,5.41039988]
[1625512931769,0.24057544,34107.0,34106.0,5.35139988]
[1625512934479,0.24057544,34107.0,34106.0,3.83314106]
[1625512934977,0.24057544,34107.0,34106.0,3.89214106]
[1625512935578,0.24057544,34107.0,34106.0,3.83314106]
[1625512938333,0.24057544,34107.0,34106.0,3.77414106]
[1625512938542,0.24057544,34107.0,34106.0,2.42934421]
[1625512938686,0.29957544,34107.0,34106.0,2.42934421]
[1625512938988,0.29957544,34107.0,34106.0,2.42587032]
[1625512939090,1.33801351,34107.0,34106.0,1.24917308]
[1625512939389,1.39701351,34107.0,34106.0,1.24917308]
[1625512940291,2.60871436,34107.0,34106.0,0.24057544]
[1625512940992,2.54971436,34107.0,34106.0,0.24057544]
[1625512941143,2.60871436,34107.0,34106.0,0.24057544]
[1625512942896,2.36813892,34107.0,34104.0,1.0180158]
[1625512943096,3.75306658,34107.0,34104.0,1.0180158]
[1625512943848,1.03867536,34105.0,34104.0,1.0180158]
[1625512944046,1.15667536,34105.0,34104.0,1.0180158]
[1625512944197,1.3972508,34105.0,34104.0,1.49916668]
[1625512946001,2.60946718,34105.0,34104.0,1.49916668]
[1625512946706,3.30223214,34105.0,34104.0,2.17836817]
[1625512948660,3.24323214,34105.0,34104.0,2.17836817]
[1625512949212,3.24323214,34105.0,34104.0,2.39699817]
[1625512949410,1.51179182,34105.0,34104.0,3.58438088]
[1625512949513,0.29957544,34105.0,34104.0,3.58438088]
[1625512949813,0.29957544,34105.0,34104.0,4.9411399]
[1625512952267,0.29957544,34105.0,34104.0,4.94461447]
[1625512954275,0.059,34105.0,34104.0,4.94461447]
[1625512958328,0.29957544,34105.0,34104.0,4.94461447]
[1625512958479,0.29957544,34105.0,34104.0,3.58785545]
[1625512959282,0.93318033,34105.0,34104.0,3.58785545]
[1625512961788,0.24057544,34105.0,34104.0,3.58785545]
[1625512962035,0.24057544,34105.0,34104.0,4.94499078]
[1625512962436,0.24057544,34105.0,34104.0,3.58785545]
[1625512962937,0.24057544,34105.0,34104.0,4.94496829]
[1625512964942,0.93321877,34105.0,34104.0,3.58785545]
[1625512970056,0.94904146,34105.0,34104.0,3.58785545]
[1625512972413,0.25639813,34105.0,34104.0,0.70325545]
[1625512972511,0.25639813,34105.0,34104.0,0.48462545]
[1625512973415,0.949102,34105.0,34104.0,3.37185785]
[1625512976823,0.949102,34105.0,34104.0,4.73176897]
[1625512976824,0.25639813,34105.0,34104.0,4.73176897]
[1625512977478,0.77594918,34105.0,34104.0,5.24177222]
[1625512983443,0.77594918,34105.0,34104.0,5.30077222]
[1625512983543,0.76012649,34105.0,34104.0,5.30077222]
[1625512983745,0.32733233,34105.0,34104.0,5.30077222]
[1625512984045,0.34315637,34105.0,34104.0,5.30077222]
[1625512985851,0.34315637,34105.0,34104.0,5.24177222]
[1625512986053,0.25639948,34105.0,34104.0,5.24177222]
[1625512986152,0.25639948,34105.0,34104.0,5.30077222]
[1625512986252,0.25639948,34105.0,34104.0,5.24177222]
[1625512986552,0.77621262,34105.0,34104.0,5.24177222]
[1625512987055,1.46939974,34105.0,34104.0,5.24177222]
[1625512987860,2.50913978,34105.0,34104.0,5.24177222]
[1625512988259,2.50913978,34105.0,34104.0,5.22547222]
[1625512988710,3.78122998,34105.0,34104.0,3.8655611]
[1625512989260,3.78122998,34105.0,34104.0,2.6767007]
[1625512989860,5.16794548,34105.0,34104.0,2.6767007]
[1625512993122,5.16794548,34105.0,34104.0,3.86839497]
[1625512994473,5.16794548,34105.0,34104.0,2.6767007]
[1625512994924,5.16794548,34105.0,34104.0,3.86946578]
[1625512996844,5.10894548,34105.0,34104.0,3.86946578]
[1625512997029,5.10894548,34105.0,34104.0,3.92846578]
[1625512997228,3.72222998,34105.0,34104.0,5.29113438]
[1625512997329,3.70640594,34105.0,34104.0,5.29113438]
[1625512997477,3.70640594,34105.0,34104.0,5.35013438]
[1625512997580,2.49331574,34105.0,34104.0,5.35013438]
[1625512998429,1.4535757,34105.0,34104.0,5.35013438]
[1625512998832,1.21300026,34105.0,34104.0,5.35013438]
[1625512998929,1.21300026,34105.0,34104.0,5.29113438]
[1625512999031,1.21300026,34105.0,34104.0,6.8225306]
[1625512999636,2.25389848,34105.0,34104.0,5.29113438]
[1625513000983,2.25389848,34105.0,34104.0,5.35013438]
[1625513001283,1.21300026,34105.0,34104.0,6.88189447]
[1625513001385,1.21300026,34105.0,34104.0,6.82289447]
[1625513001838,1.21300026,34105.0,34104.0,6.88189447]
[1625513001940,0.51981314,34105.0,34104.0,6.88189447]
[1625513002138,0.51981314,34105.0,34104.0,6.82289447]
[1625513002537,1.21375485,34105.0,34104.0,6.82289447]
[1625513004292,0.51981314,34105.0,34104.0,6.82289447]
[1625513004591,1.21375903,34105.0,34104.0,6.82289447]
[1625513010909,1.21375903,34105.0,34104.0,6.76389447]
[1625513012311,4.6437,34108.0,34104.0,2.00008554]
[1625513012662,4.6437,34108.0,34105.0,0.00347489]
[1625513012763,4.6437,34108.0,34107.0,4.76885311]
[1625513013114,4.65954503,34108.0,34107.0,4.77232805]
[1625513013315,9.51720479,34108.0,34107.0,3.40979859]
[1625513015322,8.12937634,34108.0,34107.0,4.77262234]
[1625513016573,8.11353131,34108.0,34107.0,4.77262234]
[1625513016822,8.12937586,34108.0,34107.0,4.77262234]
[1625513017278,8.18837586,34108.0,34107.0,4.77262234]
[1625513017727,9.57633317,34108.0,34107.0,3.40979859]
[1625513019581,9.57633317,34108.0,34107.0,2.21758531]
[1625513020629,9.57633317,34108.0,34107.0,3.41092918]
[1625513022638,9.51733317,34108.0,34107.0,3.41092918]
[1625513023038,9.57633317,34108.0,34107.0,3.41092918]
[1625513023138,9.51733317,34108.0,34107.0,3.41092918]
[1625513023240,9.57633317,34108.0,34107.0,3.41092918]
[1625513023996,9.51733317,34108.0,34107.0,3.41092918]
[1625513025347,8.12937586,34108.0,34107.0,4.7735946]
[1625513027700,4.65954455,34108.0,34107.0,4.7735946]
[1625513027853,4.6437,34108.0,34107.0,4.7735946]
[1625513028052,8.12941478,34108.0,34107.0,4.7735946]
[1625513031812,9.51716668,34108.0,34107.0,3.41092918]
[1625513032262,8.12941478,34108.0,34107.0,4.77498983]
[1625513032562,9.51720575,34108.0,34107.0,4.77498983]
[1625513032918,9.51720575,34108.0,34107.0,3.41092918]
[1625513033263,9.57620575,34108.0,34107.0,3.41092918]
[1625513036371,9.57620575,34108.0,34107.0,2.21758531]
[1625513036773,9.57620575,34108.0,34107.0,2.20988531]
[1625513038275,9.51720575,34108.0,34107.0,2.20988531]
[1625513039227,9.51720575,34108.0,34107.0,3.40533602]
[1625513040535,9.51720575,34108.0,34107.0,4.77181493]
[1625513040633,9.51720575,34108.0,34107.0,5.04678493]
[1625513040835,8.12941478,34108.0,34107.0,5.04678493]
[1625513041737,9.51713382,34108.0,34107.0,3.68030602]
[1625513041836,9.51713382,34108.0,34107.0,3.40533602]
[1625513044400,9.57613382,34108.0,34107.0,3.40533602]
[1625513046249,9.51713382,34108.0,34107.0,3.40533602]
[1625513046650,9.57613382,34108.0,34107.0,3.40533602]
[1625513047450,9.51713382,34108.0,34107.0,3.40533602]
[1625513047851,9.51713382,34108.0,34107.0,2.20988531]
[1625513048050,9.57613382,34108.0,34107.0,2.20988531]
[1625513048151,9.51713382,34108.0,34107.0,2.20988531]
[1625513048255,9.57613382,34108.0,34107.0,2.20988531]
[1625513048353,9.51713382,34108.0,34107.0,2.20988531]
[1625513048753,9.57613382,34108.0,34107.0,2.20988531]
[1625513048904,9.51713382,34108.0,34107.0,2.20988531]
[1625513049054,9.51713382,34108.0,34107.0,2.16548531]
[1625513049155,9.57613382,34108.0,34107.0,2.12218531]
[1625513049257,9.51713382,34108.0,34107.0,2.12218531]
[1625513049606,9.57613382,34108.0,34107.0,2.12218531]
[1625513049706,9.51713382,34108.0,34107.0,2.12218531]
[1625513049959,9.57613382,34108.0,34107.0,2.12218531]
[1625513050057,9.51713382,34108.0,34107.0,2.12218531]
[1625513050460,4.87343382,34108.0,34107.0,2.12218531]
[1625513051815,4.87343382,34108.0,34107.0,3.31890731]
[1625513052115,4.87343382,34108.0,34107.0,4.68660265]
[1625513052217,8.42893382,34108.0,34107.0,4.68660265]
[1625513055930,8.42893382,34108.0,34107.0,3.31890731]
[1625513056880,8.42893382,34108.0,34107.0,4.69068894]
[1625513058634,8.42893382,34108.0,34107.0,3.31890731]
[1625513059687,8.42893382,34108.0,34107.0,4.69378002]
[1625513060237,8.42893382,34108.0,34107.0,3.31890731]
[1625513062040,8.48733382,34108.0,34107.0,3.31890731]
[1625513062840,8.42833382,34108.0,34107.0,3.31890731]
[1625513062941,9.99069274,34108.0,34107.0,2.12218531]
[1625513063341,8.42833382,34108.0,34107.0,3.3263388]
[1625513070001,8.42833382,34108.0,34107.0,3.3853388]
[1625513072860,8.42833382,34108.0,34107.0,4.75874496]
[1625513073361,8.42833382,34108.0,34107.0,3.3853388]
[1625513076317,8.51713382,34108.0,34107.0,3.3853388]
[1625513077018,8.51713382,34108.0,34107.0,4.75888218]
[1625513077116,8.65229382,34108.0,34107.0,4.69988218]
[1625513077618,8.65229382,34108.0,34107.0,3.3263388]
[1625513078370,10.21485707,34108.0,34107.0,3.3263388]
[1625513078468,10.21585707,34108.0,34107.0,3.3263388]
[1625513078668,10.21585707,34108.0,34107.0,3.2822388]
[1625513078870,8.65329382,34108.0,34107.0,3.2822388]
[1625513079470,10.2158804,34108.0,34107.0,3.2822388]
[1625513079971,10.2158804,34108.0,34107.0,2.07808531]
[1625513080076,10.3338804,34108.0,34107.0,2.07808531]
[1625513080174,10.3338804,34108.0,34107.0,1.94618531]
[1625513080277,10.3338804,34108.0,34107.0,1.86911037]
[1625513080473,10.36863828,34108.0,34107.0,1.86911037]
[1625513080774,10.30963828,34108.0,34107.0,0.85441332]
[1625513080921,10.30963828,34108.0,34107.0,0.81551332]
[1625513081221,10.50963828,34108.0,34107.0,0.81551332]
[1625513081349,10.50963828,34108.0,34103.0,1.2021267]
[1625513081436,12.30468033,34108.0,34105.0,0.0858223]
[1625513081523,0.05068111,34107.0,34105.0,0.0858223]
[1625513081623,0.2884,34106.0,34105.0,0.0858223]
[1625513081721,0.3474,34106.0,34105.0,0.0858223]
[1625513081822,0.88755088,34106.0,34105.0,0.0858223]
[1625513081923,6.79034207,34106.0,34104.0,0.08579406]
[1625513082074,6.80625573,34106.0,34104.0,0.08579406]
[1625513082326,0.01591346,34105.0,34104.0,0.08579406]
[1625513082422,0.07491346,34105.0,34104.0,0.08579406]
[1625513082524,0.07491346,34105.0,34103.0,0.25740382]
[1625513082525,6.2367872,34105.0,34103.0,0.25740382]
[1625513082622,6.2367872,34105.0,34102.0,0.14026281]
[1625513083123,4.16412698,34103.0,34097.0,1.20044113]
[1625513083224,4.22312698,34103.0,34097.0,1.20044113]
[1625513083323,4.28212698,34103.0,34097.0,1.20044113]
[1625513083622,2.60263349,34098.0,34097.0,1.20044113]
[1625513083723,2.82888349,34098.0,34097.0,1.20044113]
[1625513083823,3.60960981,34098.0,34097.0,1.20044113]
[1625513083924,3.62552384,34098.0,34097.0,1.20044113]
[1625513084124,3.68452384,34098.0,34097.0,1.12744113]
[1625513084226,3.68452384,34098.0,34096.0,1.19975148]
[1625513084729,0.01591532,34097.0,34096.0,1.19975148]
[1625513084829,0.07491532,34097.0,34096.0,1.19975148]
[1625513084929,3.08169239,34097.0,34092.0,0.057]
[1625513085029,3.08169239,34097.0,34091.0,0.057]
[1625513085227,0.01591671,34096.0,34091.0,0.057]
[1625513085326,0.07491671,34096.0,34091.0,0.057]
[1625513085426,1.38729308,34093.0,34091.0,0.057]
[1625513085528,1.44629308,34093.0,34091.0,0.057]
[1625513085878,0.24057544,34092.0,34091.0,0.057]
[1625513085979,0.24057544,34092.0,34090.0,0.24057544]
[1625513085980,0.29957544,34092.0,34090.0,1.61225629]
[1625513086077,0.29957544,34092.0,34090.0,1.66925629]
[1625513086177,0.29957544,34092.0,34091.0,0.00347638]
[1625513086480,5.35857544,34092.0,34090.0,1.66925629]
[1625513086681,5.35857544,34092.0,34090.0,0.29757544]
[1625513087834,0.24057544,34091.0,34090.0,0.29757544]
[1625513087936,0.50131544,34091.0,34090.0,0.24057544]
[1625513089792,0.24057544,34091.0,34090.0,0.24057544]
[1625513091146,0.24057544,34091.0,34090.0,1.60945049]
[1625513091497,0.24057544,34091.0,34090.0,0.24057544]
[1625513092101,0.24057544,34091.0,34090.0,0.18977544]
[1625513092197,0.24057544,34091.0,34090.0,0.15337544]
[1625513092298,0.24057544,34091.0,34090.0,0.13757544]
[1625513092402,0.24057544,34091.0,34090.0,1.50261633]
[1625513092497,0.24057544,34091.0,34090.0,1.49861633]
[1625513093501,0.24057544,34091.0,34090.0,1.75975633]
[1625513094549,0.24057544,34091.0,34090.0,0.39081544]
[1625513095052,0.24057544,34091.0,34090.0,1.76083924]
[1625513096803,0.24057544,34091.0,34090.0,0.39081544]
[1625513099655,0.24057544,34091.0,34090.0,0.44981544]
[1625513100159,0.24057544,34091.0,34090.0,0.45329156]
[1625513100258,0.24057544,34091.0,34090.0,1.82168813]
[1625513101361,0.24057544,34091.0,34090.0,3.36215375]
[1625513101511,0.24057544,34091.0,34090.0,3.42115375]
[1625513102362,0.24057544,34091.0,34090.0,3.43239765]
[1625513104519,0.24057544,34091.0,34090.0,4.63000926]
[1625513104819,0.24057544,34091.0,34090.0,4.61876536]
[1625513105022,0.24057544,34091.0,34090.0,4.63000555]
[1625513105421,0.24057544,34091.0,34090.0,4.61876536]
[1625513109336,0.24057544,34091.0,34090.0,3.07829974]
[1625513111536,0.24057544,34091.0,34090.0,4.10415136]
[1625513116897,0.24057544,34091.0,34090.0,5.64399887]
[1625513118952,0.24057544,34091.0,34090.0,4.10415136]
[1625513119201,0.24057544,34091.0,34090.0,4.04515136]
[1625513122106,0.24057544,34091.0,34090.0,4.10415136]
[1625513125411,0.24057544,34091.0,34090.0,4.04515136]
[1625513131833,0.24057544,34091.0,34090.0,4.10415136]
[1625513132632,0.24057544,34091.0,34090.0,4.04515136]
[1625513138451,0.24057544,34091.0,34090.0,4.10415136]
[1625513139202,0.24057544,34091.0,34090.0,5.64082726]
[1625513140406,0.24057544,34091.0,34090.0,6.32870736]
[1625513141056,0.93461552,34091.0,34090.0,6.32870736]
[1625513142109,0.24057544,34091.0,34090.0,6.32870736]
[1625513144613,0.24057544,34091.0,34090.0,6.32523124]
[1625513144914,0.24057544,34091.0,34090.0,6.32870727]
[1625513146719,0.93468597,34091.0,34090.0,6.32870727]
[1625513147021,0.24057544,34091.0,34090.0,6.32870727]
[1625513148325,0.24057544,34091.0,34090.0,6.34005178]
[1625513149128,0.24057544,34091.0,34090.0,6.28105178]
[1625513150180,0.24057544,34091.0,34090.0,6.26970727]
[1625513150384,0.24057544,34091.0,34090.0,6.28105242]
[1625513150731,0.24057544,34091.0,34090.0,6.26970727]
[1625513150932,0.24057544,34091.0,34090.0,6.28105539]
[1625513151034,0.93490452,34091.0,34090.0,6.28105539]
[1625513151434,0.24057544,34091.0,34090.0,6.28105539]
[1625513152235,0.93492625,34091.0,34090.0,6.28105539]
[1625513152683,0.93492625,34091.0,34090.0,6.34005539]
[1625513152885,0.93492625,34091.0,34090.0,10.82025539]
[1625513152985,0.93492625,34091.0,34090.0,6.34005539]
[1625513153284,0.24057544,34091.0,34090.0,6.34005539]
[1625513153484,4.88877544,34091.0,34090.0,6.34005539]